bitfinex-derivatives/quotes_BTCF0:USTF0_20251108
["timestamp","ask_amount","ask_price","bid_price","bid_amount"]
[1762587948861,0.1281927,102330.0,102320.0,0.16995794]
[1762587949163,0.0548753,102330.0,102320.0,0.16995794]
[1762587949462,0.4879927,102330.0,102320.0,0.16995794]
[1762587950462,0.1271927,102330.0,102320.0,0.26774444]
[1762587950656,0.0548753,102330.0,102320.0,0.26774444]
[1762587951354,0.0528753,102330.0,102320.0,0.26774444]
[1762587951550,0.1231927,102330.0,102320.0,0.26774444]
[1762587953155,0.0528753,102330.0,102320.0,0.37996238]
[1762587955264,0.0528753,102330.0,102320.0,0.28217588]
[1762587955465,0.4136753,102330.0,102320.0,0.16995794]
[1762587957362,0.0528753,102330.0,102320.0,0.16995794]
[1762587958068,0.4221953,102330.0,102320.0,0.15698794]
[1762587958660,0.4925127,102330.0,102320.0,0.15698794]
[1762587958962,0.4925127,102330.0,102320.0,0.02296]
[1762587959164,0.05657,102320.0,102310.0,0.32128498]
[1762587959357,0.41737,102320.0,102310.0,0.32128498]
[1762587959964,0.41737,102320.0,102310.0,0.30831498]
[1762587960264,0.4876874,102320.0,102310.0,0.30831498]
[1762587960462,0.4876874,102320.0,102310.0,0.30931498]
[1762587961066,0.4876874,102320.0,102310.0,0.31031498]
[1762587962674,0.4876874,102320.0,102310.0,0.15174704]
[1762587962865,0.4876874,102320.0,102310.0,0.00214704]
[1762587963469,0.4876874,102320.0,102310.0,0.04849704]
[1762587963875,0.4876874,102320.0,102310.0,0.04749704]
[1762587964064,0.4896874,102320.0,102310.0,0.00014704]
[1762587964768,0.4916874,102320.0,102310.0,0.00014704]
[1762587965073,0.4916874,102320.0,102310.0,0.02323704]
[1762587965372,0.4916874,102320.0,102310.0,0.04649704]
[1762587967074,0.4896874,102320.0,102310.0,0.04649704]
[1762587968076,0.4916874,102320.0,102310.0,0.04649704]
[1762587968280,0.4896874,102320.0,102310.0,0.15871498]
[1762587970077,0.4916874,102320.0,102310.0,0.15871498]
[1762587971173,0.4790674,102320.0,102310.0,0.26915108]
[1762587972977,0.4770674,102320.0,102310.0,0.26915108]
[1762587973179,0.4750674,102320.0,102310.0,0.26915108]
[1762587975486,0.41350581,102320.0,102310.0,0.26915108]
[1762587975683,0.43556581,102320.0,102310.0,0.26915108]
[1762587975879,0.45745581,102320.0,102310.0,0.26915108]
[1762587976186,0.45745581,102320.0,102310.0,0.17135498]
[1762587976384,0.45745581,102320.0,102310.0,0.26915108]
[1762587976588,0.09665581,102320.0,102310.0,0.26915108]
[1762587977292,0.09665581,102320.0,102310.0,0.17135498]
[1762587978089,0.09665581,102320.0,102310.0,0.26915108]
[1762587978691,0.09665581,102320.0,102310.0,0.17135498]
[1762587978886,0.46456581,102320.0,102310.0,0.04649704]
[1762587979088,0.4821774,102320.0,102310.0,0.15871498]
[1762587979488,0.41186,102320.0,102310.0,0.15871498]
[1762587979689,0.4821774,102320.0,102310.0,0.15871498]
[1762587979995,0.40475,102320.0,102310.0,0.26915108]
[1762587980188,0.45746182,102320.0,102310.0,0.26915108]
[1762587981891,0.09666182,102320.0,102310.0,0.26915108]
[1762587982289,0.09666182,102320.0,102310.0,0.32517014]
[1762587982697,0.07477182,102320.0,102310.0,0.32517014]
[1762587982894,0.05271182,102320.0,102310.0,0.68597014]
[1762587983094,0.09666182,102320.0,102310.0,0.68597014]
[1762587984591,0.4750674,102340.0,102330.0,0.05899]
[1762587984791,0.4750674,102340.0,102330.0,0.227227]
[1762587984991,0.4750674,102340.0,102330.0,0.325004]
[1762587985388,0.4750674,102340.0,102330.0,0.227227]
[1762587985690,0.4770674,102340.0,102330.0,0.227227]
[1762587986295,0.4790674,102340.0,102330.0,0.227227]
[1762587986493,0.40875,102340.0,102330.0,0.227227]
[1762587988600,0.41834021,102340.0,102330.0,0.325004]
[1762587989399,0.41434021,102340.0,102330.0,0.327004]
[1762587989600,0.41434021,102340.0,102330.0,0.229227]
[1762587989796,0.41434021,102340.0,102330.0,0.327004]
[1762587990494,0.42754021,102340.0,102330.0,0.1451085]
[1762587991305,0.42754021,102340.0,102330.0,0.2428855]
[1762587992001,0.42754021,102340.0,102330.0,0.327004]
[1762587992200,0.06674021,102340.0,102330.0,0.327004]
[1762587992801,0.06674021,102340.0,102330.0,0.687804]
[1762587994204,0.05354021,102340.0,102330.0,0.687804]
[1762588000508,0.41434021,102340.0,102330.0,0.229227]
[1762588001110,0.41434021,102340.0,102330.0,0.3270039]
[1762588002106,0.05354021,102340.0,102330.0,0.3270039]
[1762588002710,0.05354021,102340.0,102330.0,0.6878039]
[1762588004503,0.10623632,102340.0,102330.0,0.6878039]
[1762588005605,0.08434632,102340.0,102330.0,0.6878039]
[1762588006405,0.10554632,102340.0,102330.0,0.6878039]
[1762588011414,0.06228632,102340.0,102330.0,0.6878039]
[1762588013916,0.08435632,102340.0,102330.0,0.6878039]
[1762588014217,0.06228632,102340.0,102330.0,0.6878039]
[1762588018921,0.08437632,102340.0,102330.0,0.6878039]
[1762588019520,0.06228632,102340.0,102330.0,0.6878039]
[1762588022518,0.08437632,102340.0,102330.0,0.6878039]
[1762588023021,0.06228632,102340.0,102330.0,0.6878039]
[1762588032214,0.46813632,102340.0,102330.0,0.06099]
[1762588032415,0.10733632,102340.0,102330.0,0.229227]
[1762588032621,0.10742145,102340.0,102330.0,0.229227]
[1762588032819,0.1074208,102340.0,102330.0,0.229227]
[1762588033021,0.05464021,102340.0,102330.0,0.229227]
[1762588033325,0.12495761,102340.0,102330.0,0.229227]
[1762588033528,0.12495761,102340.0,102330.0,0.327004]
[1762588035230,0.49269761,102340.0,102330.0,0.1451085]
[1762588035923,0.49269761,102340.0,102330.0,0.04835]
[1762588036130,0.49269761,102340.0,102330.0,0.1324685]
[1762588037925,0.42238021,102340.0,102330.0,0.15776382]
[1762588038928,0.47517094,102340.0,102330.0,0.15776382]
[1762588039622,0.42238021,102340.0,102330.0,0.1324685]
[1762588040733,0.47516366,102340.0,102330.0,0.1324685]
[1762588041027,0.50649871,102340.0,102330.0,0.1324685]
[1762588041227,0.42238021,102340.0,102330.0,0.0861185]
[1762588041431,0.50957781,102340.0,102330.0,0.0861185]
[1762588042035,0.59369631,102340.0,102330.0,0.0861185]
[1762588042334,0.59369631,102340.0,102330.0,0.002]
[1762588042636,0.6291295,102340.0,102330.0,0.002]
[1762588043338,0.71702707,102340.0,102330.0,0.002]
[1762588043533,0.6291295,102340.0,102330.0,0.002]
[1762588044035,0.713248,102340.0,102330.0,0.002]
[1762588044328,0.713248,102340.0,102310.0,0.00014704]
[1762588044329,0.05625,102320.0,102310.0,0.00014704]
[1762588044530,0.84813155,102320.0,102310.0,0.00014704]
[1762588045132,0.77785,102320.0,102310.0,0.00014704]
[1762588045332,0.86570194,102320.0,102310.0,0.00014704]
[1762588045737,0.86570194,102320.0,102310.0,0.02263704]
[1762588046328,0.84805178,102320.0,102310.0,0.02563704]
[1762588046525,0.84805178,102320.0,102310.0,0.02863704]
[1762588047635,0.84805178,102320.0,102310.0,0.17522917]
[1762588049238,0.84805178,102320.0,102310.0,0.05009704]
[1762588049444,0.84805178,102320.0,102310.0,0.16231917]
[1762588055842,0.48725178,102320.0,102310.0,0.16231917]
[1762588057248,0.48725178,102320.0,102310.0,0.17522917]
[1762588057646,0.09761659,102320.0,102310.0,0.06300704]
[1762588057845,0.09761659,102320.0,102310.0,0.27302527]
[1762588058550,0.04505,102320.0,102310.0,0.63382527]
[1762588060946,0.04505,102320.0,102310.0,0.27302527]
[1762588061244,0.04505,102320.0,102310.0,0.63382527]
[1762588062243,0.09761659,102320.0,102310.0,0.63382527]
[1762588062451,0.09761659,102320.0,102310.0,0.17522917]
[1762588062644,0.45841659,102320.0,102310.0,0.17522917]
[1762588062947,0.09761659,102320.0,102310.0,0.17522917]
[1762588063149,0.45841659,102320.0,102310.0,0.17522917]
[1762588064051,0.46999659,102320.0,102310.0,0.17522917]
[1762588064249,0.46999659,102320.0,102310.0,0.16231917]
[1762588065251,0.41743,102320.0,102310.0,0.16231917]
[1762588065647,0.41743,102320.0,102310.0,0.05009704]
[1762588065855,0.41743,102320.0,102310.0,0.16231917]
[1762588066247,0.48763178,102320.0,102310.0,0.16231917]
[1762588069950,0.48763178,102320.0,102310.0,0.05009704]
[1762588070256,0.48763178,102320.0,102310.0,0.16231917]
[1762588073660,0.48763178,102320.0,102310.0,0.05009704]
[1762588073859,0.48763178,102320.0,102310.0,0.16231917]
[1762588075065,0.48763178,102320.0,102310.0,0.17527917]
[1762588075460,0.48763178,102320.0,102310.0,0.27307527]
[1762588075663,0.40585,102320.0,102310.0,0.27307527]
[1762588078365,0.49370194,102320.0,102310.0,0.27307527]
[1762588078565,0.40585,102320.0,102310.0,0.27307527]
[1762588078770,0.49370194,102320.0,102310.0,0.27307527]
[1762588079569,0.47622828,102320.0,102310.0,0.27307527]
[1762588080766,0.47622828,102320.0,102310.0,0.16085314]
[1762588080961,0.40585,102320.0,102310.0,0.27307527]
[1762588081155,0.09783331,102320.0,102310.0,0.63387527]
[1762588081361,0.09783331,102320.0,102310.0,0.65905435]
[1762588081556,0.09783331,102320.0,102310.0,0.63387527]
[1762588081770,0.09783331,102320.0,102310.0,0.65904421]
[1762588082366,0.09783331,102320.0,102310.0,0.63387527]
[1762588084466,0.09783331,102320.0,102310.0,0.53607917]
[1762588085375,0.09783331,102320.0,102310.0,0.63387527]
[1762588085972,0.09783331,102320.0,102310.0,0.53607917]
[1762588086273,0.09783331,102320.0,102310.0,0.63387527]
[1762588087369,0.09783331,102320.0,102310.0,0.52165314]
[1762588087571,0.09783331,102320.0,102310.0,0.63387527]
[1762588087772,0.09783331,102320.0,102310.0,0.17527917]
[1762588088174,0.09783331,102320.0,102310.0,0.27307527]
[1762588088369,0.09783331,102320.0,102310.0,0.17527917]
[1762588089462,0.09783331,102320.0,102310.0,0.27307527]
[1762588090466,0.07487331,102320.0,102310.0,0.27307527]
[1762588091174,0.07487331,102320.0,102310.0,0.63387527]
[1762588091670,0.09771331,102320.0,102310.0,0.63387527]
[1762588094067,0.05278331,102320.0,102310.0,0.7460974]
[1762588094270,0.07536331,102330.0,102320.0,0.1550465]
[1762588094465,0.07536331,102330.0,102320.0,0.74029076]
[1762588094466,0.05278331,102330.0,102320.0,0.74029076]
[1762588095572,0.05278331,102330.0,102320.0,0.74329076]
[1762588099177,0.10779352,102340.0,102330.0,0.155037]
[1762588099371,0.10779352,102340.0,102330.0,0.62805913]
[1762588099970,0.10779352,102340.0,102330.0,0.53028213]
[1762588100168,0.10779352,102340.0,102330.0,0.16948213]
[1762588101176,0.10779352,102340.0,102330.0,0.17048213]
[1762588102676,0.10779352,102340.0,102330.0,0.26825913]
[1762588104081,0.10779352,102340.0,102330.0,0.17048213]
[1762588104379,0.10779352,102340.0,102330.0,0.22645498]
[1762588106176,0.10779352,102340.0,102330.0,0.32423198]
[1762588107078,0.10779352,102340.0,102330.0,0.22645498]
[1762588107678,0.10779352,102340.0,102330.0,0.32423198]
[1762588107879,0.10779352,102340.0,102330.0,0.22645498]
[1762588108482,0.10779352,102340.0,102330.0,0.32423198]
[1762588112081,0.06237352,102340.0,102330.0,0.32423198]
[1762588112989,0.08352352,102340.0,102330.0,0.32423198]
[1762588114290,0.10575352,102340.0,102330.0,0.32423198]
[1762588115391,0.05297021,102340.0,102330.0,0.32423198]
[1762588115589,0.03074021,102340.0,102330.0,0.32423198]
[1762588116390,0.02115,102340.0,102330.0,0.32423198]
[1762588116591,0.05271713,102340.0,102330.0,0.68503198]
[1762588118286,0.10588681,102350.0,102340.0,0.1559274]
[1762588118487,0.10588681,102350.0,102340.0,0.68492238]
[1762588119587,0.10688681,102350.0,102340.0,0.68492238]
[1762588120390,0.10788681,102350.0,102340.0,0.68492238]
[1762588121503,0.10788681,102350.0,102340.0,0.32412238]
[1762588121697,0.05516968,102350.0,102340.0,0.32412238]
[1762588121898,0.48634796,102350.0,102340.0,0.22635498]
[1762588122296,0.41596968,102350.0,102340.0,0.22635498]
[1762588122994,0.48634796,102350.0,102340.0,0.22635498]
[1762588125407,0.41596968,102350.0,102340.0,0.32412238]
[1762588127409,0.48634796,102350.0,102340.0,0.32412238]
[1762588130598,0.46870465,102350.0,102340.0,0.32412238]
[1762588132110,0.41596968,102350.0,102340.0,0.32412238]
[1762588133302,0.05516968,102350.0,102340.0,0.68492238]
[1762588133506,0.10790151,102350.0,102340.0,0.68492238]
[1762588134712,0.10790151,102350.0,102340.0,0.71013345]
[1762588137106,0.08567151,102350.0,102340.0,0.71013345]
[1762588137306,0.10736151,102350.0,102340.0,0.71013345]
[1762588139516,0.10736151,102350.0,102340.0,0.79423094]
[1762588140314,0.10736151,102350.0,102340.0,0.61236605]
[1762588140516,0.46816151,102350.0,102340.0,0.22635498]
[1762588140717,0.46816151,102350.0,102340.0,0.34926244]
[1762588143521,0.48580796,102350.0,102340.0,0.32412238]
[1762588151535,0.48480796,102350.0,102340.0,0.32412238]
[1762588152228,0.48380796,102350.0,102340.0,0.32512238]
[1762588154337,0.48380796,102350.0,102340.0,0.40921987]
[1762588157229,0.48380796,102350.0,102340.0,0.32512238]
[1762588163045,0.48380796,102350.0,102340.0,0.40921987]
[1762588164644,0.12300796,102350.0,102340.0,0.40921987]
[1762588166444,0.12300796,102350.0,102340.0,0.26902424]
[1762588175149,0.09152828,102350.0,102340.0,0.62982424]
[1762588175348,0.10141306,102350.0,102340.0,0.62982424]
[1762588175548,0.09152828,102350.0,102340.0,0.62982424]
[1762588176137,0.09152828,102350.0,102340.0,0.6550271]
[1762588176343,0.05278305,102360.0,102350.0,0.1111778]
[1762588176542,0.05473609,102370.0,102360.0,0.05858]
[1762588176844,0.05473609,102370.0,102360.0,0.38052198]
[1762588177253,0.05473609,102370.0,102360.0,0.74132198]
[1762588178150,0.05673609,102370.0,102360.0,0.74132198]
[1762588178349,0.05673609,102370.0,102360.0,0.64357368]
[1762588178656,0.05673609,102370.0,102360.0,0.74132198]
[1762588178955,0.05873609,102370.0,102360.0,0.74132198]
[1762588182158,0.04906,102370.0,102360.0,0.74132198]
[1762588182557,0.09788299,102400.0,102390.0,0.02952]
[1762588182757,0.06473105,102400.0,102390.0,0.54931984]
[1762588182961,0.06473105,102400.0,102390.0,0.41158]
[1762588183153,0.05016,102390.0,102380.0,0.95190704]
[1762588183457,0.41096,102390.0,102380.0,0.54762704]
[1762588183656,1.01096,102390.0,102380.0,0.54762704]
[1762588184361,1.01196,102390.0,102380.0,0.54762704]
[1762588185662,0.41196,102390.0,102380.0,0.54762704]
[1762588185861,0.41296,102390.0,102380.0,0.00014704]
[1762588190662,1.08309577,102390.0,102380.0,0.00014704]
[1762588194468,1.08309577,102390.0,102380.0,0.02140704]
[1762588194968,1.08309577,102390.0,102380.0,0.00014704]
[1762588197170,1.08309577,102390.0,102380.0,0.04405704]
[1762588197770,1.08309577,102390.0,102380.0,0.00014704]
[1762588198472,1.44389577,102390.0,102380.0,0.00014704]
[1762588199472,1.44389577,102390.0,102380.0,0.02133704]
[1762588199672,1.44389577,102390.0,102380.0,0.04405704]
[1762588200774,1.44389577,102390.0,102380.0,0.02133704]
[1762588201164,1.37376,102390.0,102380.0,0.02133704]
[1762588201469,1.37376,102390.0,102380.0,0.04405704]
[1762588202175,1.37376,102390.0,102380.0,0.00014704]
[1762588202471,1.46161194,102390.0,102380.0,0.00014704]
[1762588204881,0.04982,102370.0,102360.0,0.04391]
[1762588205074,0.10252306,102370.0,102360.0,0.04391]
[1762588206074,0.10252306,102370.0,102360.0,0.04891]
[1762588206374,0.04982,102370.0,102360.0,0.04891]
[1762588206776,0.04982,102370.0,102360.0,0.04691]
[1762588206978,0.59398759,102370.0,102360.0,0.003]
[1762588207178,0.05609,102360.0,102350.0,0.59149704]
[1762588207482,0.12640459,102360.0,102350.0,0.70359388]
[1762588207967,0.12640459,102360.0,102350.0,0.71734388]
[1762588208172,0.12640459,102360.0,102350.0,0.16990388]
[1762588208482,0.05609,102360.0,102350.0,0.16990388]
[1762588208677,0.05609,102360.0,102350.0,0.17090388]
[1762588208978,0.05609,102360.0,102350.0,0.17190388]
[1762588210278,0.04325,102360.0,102350.0,0.17190388]
[1762588212281,0.09591998,102360.0,102350.0,0.17190388]
[1762588212580,0.05609,102360.0,102350.0,0.17190388]
[1762588213874,0.04325,102360.0,102350.0,0.17190388]
[1762588214583,0.04325,102360.0,102350.0,0.05980704]
[1762588215081,0.04325,102360.0,102350.0,0.17190388]
[1762588216083,0.11356459,102360.0,102350.0,0.17190388]
[1762588218781,0.11356459,102360.0,102350.0,0.63046178]
[1762588218983,0.05266865,102360.0,102350.0,0.58655178]
[1762588219286,0.09591865,102370.0,102360.0,0.05766]
[1762588219583,0.09591865,102370.0,102360.0,0.53055684]
[1762588219784,0.11356459,102370.0,102360.0,0.53055684]
[1762588220087,0.11371163,102380.0,102370.0,0.05766]
[1762588220289,0.11371163,102380.0,102370.0,0.16975684]
[1762588221987,0.11471163,102380.0,102370.0,0.16975684]
[1762588222481,0.11671163,102380.0,102370.0,0.16975684]
[1762588223482,0.04639704,102380.0,102370.0,0.16975684]
[1762588224485,0.09905503,102380.0,102370.0,0.53055684]
[1762588227086,0.09905503,102380.0,102370.0,0.62829564]
[1762588228384,0.09905503,102380.0,102370.0,0.600239]
[1762588230894,0.05580503,102380.0,102370.0,0.600239]
[1762588231088,0.05580503,102380.0,102370.0,0.6842792]
[1762588232187,0.07684503,102380.0,102370.0,0.6842792]
[1762588232694,0.07684503,102380.0,102370.0,0.600239]
[1762588236097,0.07484503,102380.0,102370.0,0.601239]
[1762588236490,0.07384503,102380.0,102370.0,0.602239]
[1762588239709,0.45740503,102380.0,102370.0,0.1437002]
[1762588240095,0.09660503,102380.0,102370.0,0.1437002]
[1762588243305,0.11426163,102380.0,102370.0,0.1437002]
[1762588243899,0.09660924,102380.0,102370.0,0.602239]
[1762588246405,0.09660924,102380.0,102370.0,0.5181988]
[1762588246702,0.09660924,102380.0,102370.0,0.602239]
[1762588247202,0.09660924,102380.0,102370.0,0.5045002]
[1762588247403,0.04394704,102380.0,102370.0,0.5045002]
[1762588247591,0.04394704,102380.0,102370.0,0.602239]
[1762588248310,0.11426163,102380.0,102370.0,0.602239]
[1762588248690,0.04394704,102380.0,102370.0,0.602239]
[1762588250004,0.11426163,102380.0,102370.0,0.602239]
[1762588253806,0.04394704,102380.0,102370.0,0.602239]
[1762588255007,0.11426163,102380.0,102370.0,0.602239]
[1762588255701,0.11426163,102380.0,102370.0,0.5045002]
[1762588255906,0.04394704,102380.0,102370.0,0.602239]
[1762588258312,0.04394704,102380.0,102370.0,0.5045002]
[1762588258612,0.11426163,102380.0,102370.0,0.5045002]
[1762588259100,0.11426163,102380.0,102370.0,0.05966]
[1762588259302,0.11426163,102380.0,102370.0,0.5045002]
[1762588259913,0.11426163,102380.0,102370.0,0.1437002]
[1762588261014,0.21134183,102380.0,102370.0,0.1437002]
[1762588261207,0.11426163,102380.0,102370.0,0.1437002]
[1762588261407,0.11426163,102380.0,102370.0,0.6022389]
[1762588263710,0.09150163,102380.0,102370.0,0.6022389]
[1762588263911,0.02118704,102380.0,102370.0,0.62814664]
[1762588264108,0.00014704,102380.0,102370.0,0.62814664]
[1762588268316,0.00014704,102380.0,102370.0,0.71218684]
[1762588268716,0.00014704,102380.0,102370.0,0.62814664]
[1762588270017,0.00014704,102380.0,102370.0,0.71218684]
[1762588270215,0.05292813,102380.0,102370.0,0.71217464]
[1762588271408,0.05292813,102380.0,102370.0,0.7578837]
[1762588271819,0.05292813,102380.0,102370.0,0.71217464]
[1762588274520,0.05292813,102380.0,102370.0,0.71214492]
[1762588274916,0.01792813,102380.0,102370.0,0.86174492]
[1762588275512,0.10259564,102400.0,102390.0,0.04332]
[1762588275717,0.06758105,102400.0,102390.0,0.1273602]
[1762588276025,0.06758105,102400.0,102390.0,0.2250799]
[1762588276421,0.05454105,102400.0,102390.0,0.3227801]
[1762588276726,0.10459538,102400.0,102390.0,0.6835801]
[1762588276920,0.01203105,102400.0,102390.0,0.6835801]
[1762588277312,0.002,102400.0,102390.0,0.6835801]
[1762588277521,0.003,102400.0,102390.0,0.6835801]
[1762588278026,0.002,102400.0,102390.0,0.6835801]
[1762588278917,0.1245162,102410.0,102400.0,0.1546901]
[1762588279120,0.1245162,102410.0,102400.0,0.6835705]
[1762588279923,0.1265162,102410.0,102400.0,0.6835705]
[1762588280521,0.1285162,102410.0,102400.0,0.6835705]
[1762588280918,0.05820187,102410.0,102400.0,0.6835705]
[1762588282117,0.07124187,102410.0,102400.0,0.2114004]
[1762588283221,0.07124187,102410.0,102400.0,0.3227705]
[1762588283727,0.01369187,102410.0,102400.0,0.6835705]
[1762588286628,0.004,102410.0,102400.0,0.6835705]
[1762588287226,0.12644433,102430.0,102420.0,0.05117]
[1762588287529,0.12644433,102430.0,102420.0,0.6777414]
[1762588287530,0.04309,102430.0,102420.0,0.6777414]
[1762588288321,0.04709,102430.0,102420.0,0.52391211]
[1762588288632,0.05983,102430.0,102420.0,0.52391211]
[1762588289035,0.06945683,102430.0,102420.0,0.52391211]
[1762588289726,0.07345683,102430.0,102420.0,0.52391211]
[1762588290532,0.43425683,102430.0,102420.0,0.16311211]
[1762588291333,0.43425683,102430.0,102420.0,0.15530211]
[1762588294536,0.43425683,102430.0,102420.0,0.04336]
[1762588298137,0.05583,102420.0,102410.0,0.04350704]
[1762588298340,0.05583,102420.0,102410.0,0.40430704]
[1762588299036,0.05583,102420.0,102410.0,0.04350704]
[1762588299441,0.05783,102420.0,102410.0,0.04350704]
[1762588300029,0.06083,102420.0,102410.0,0.04350704]
[1762588305642,0.06083,102420.0,102410.0,0.15544915]
[1762588305844,0.05883,102420.0,102410.0,0.15544915]
[1762588306048,0.05683,102420.0,102410.0,0.15544915]
[1762588306350,0.12814433,102420.0,102410.0,0.15544915]
[1762588306948,0.24008644,102420.0,102410.0,0.00014704]
[1762588307146,0.61842405,102420.0,102410.0,0.00014704]
[1762588307446,0.05846,102390.0,102380.0,0.52447211]
[1762588308040,0.18282022,102420.0,102410.0,0.05728]
[1762588308366,0.04745,102420.0,102410.0,0.53002211]
[1762588308550,0.04645,102420.0,102410.0,0.53002211]
[1762588308751,0.04645,102420.0,102410.0,0.62772271]
[1762588309149,0.04545,102420.0,102410.0,0.62772271]
[1762588309448,0.11570828,102420.0,102410.0,0.62772271]
[1762588309652,0.04545,102420.0,102410.0,0.62772271]
[1762588324957,0.04545,102420.0,102410.0,0.26692271]
[1762588325163,0.04545,102420.0,102410.0,0.98852271]
[1762588331264,0.04545,102420.0,102410.0,0.89082211]
[1762588331662,0.04545,102420.0,102410.0,0.98852271]
[1762588331966,0.05842,102420.0,102410.0,0.89082211]
[1762588332163,0.41922,102420.0,102410.0,0.04392]
[1762588332569,0.48947828,102420.0,102410.0,0.04392]
[1762588332862,0.41922,102420.0,102410.0,0.04392]
[1762588333164,0.53116211,102420.0,102410.0,0.04392]
[1762588334164,0.58111097,102420.0,102410.0,0.04392]
[1762588334365,0.59871568,102420.0,102410.0,0.04392]
[1762588334870,0.50707194,102420.0,102410.0,0.04392]
[1762588335166,0.59871568,102420.0,102410.0,0.04392]
[1762588335367,0.51086374,102420.0,102410.0,0.04392]
[1762588335568,0.59871568,102420.0,102410.0,0.04392]
[1762588335764,0.58109489,102420.0,102410.0,0.04392]
[1762588341763,0.51086374,102420.0,102410.0,0.04392]
[1762588341967,0.59871568,102420.0,102410.0,0.04392]
[1762588342273,0.61016281,102420.0,102410.0,0.04392]
[1762588344277,0.50707194,102420.0,102410.0,0.04392]
[1762588344576,0.61016281,102420.0,102410.0,0.04392]
[1762588347280,0.59250657,102420.0,102410.0,0.04392]
[1762588350383,0.4894157,102420.0,102410.0,0.04392]
[1762588350582,0.69559938,102420.0,102410.0,0.04392]
[1762588351081,0.59250754,102420.0,102410.0,0.04392]
[1762588354385,0.59250754,102420.0,102410.0,0.14701184]
[1762588354682,0.59250754,102420.0,102410.0,0.04392]
[1762588354886,0.59250754,102420.0,102410.0,0.14701184]
[1762588355786,0.59250754,102420.0,102410.0,0.04392]
[1762588356385,0.52231184,102420.0,102410.0,0.04392]
[1762588357288,0.61016378,102420.0,102410.0,0.04392]
[1762588358377,0.61016378,102420.0,102410.0,0.02242]
[1762588358584,0.61016378,102420.0,102400.0,0.50710888]
[1762588358585,0.05909,102410.0,102400.0,0.50710888]
[1762588358890,0.12821808,102410.0,102400.0,0.50710888]
[1762588359092,0.12821808,102410.0,102400.0,0.51991888]
[1762588359992,0.12821808,102410.0,102400.0,0.52091888]
[1762588360593,0.12821808,102410.0,102400.0,0.52191888]
[1762588364501,0.12821808,102410.0,102400.0,0.62501072]
[1762588364888,0.12821808,102410.0,102400.0,0.70991082]
[1762588365088,0.23130992,102410.0,102400.0,0.50910888]
[1762588365894,0.52185341,102410.0,102400.0,0.14830888]
[1762588366098,0.60970535,102410.0,102400.0,0.14830888]
[1762588366901,0.60970535,102410.0,102400.0,0.04521704]
[1762588367101,0.60970535,102410.0,102400.0,0.14830888]
[1762588367991,0.60970535,102410.0,102400.0,0.14730888]
[1762588368397,0.60970535,102410.0,102400.0,0.04421704]
[1762588369100,0.60970535,102410.0,102400.0,0.04321704]
[1762588369304,0.60970535,102410.0,102400.0,0.14630888]
[1762588370096,0.50661351,102410.0,102400.0,0.14630888]
[1762588370301,0.50661351,102410.0,102400.0,0.04321704]
[1762588370302,0.60970535,102410.0,102400.0,0.04321704]
[1762588372903,0.60970535,102410.0,102400.0,0.14630888]
[1762588374910,0.52185341,102410.0,102400.0,0.14630888]
[1762588375213,0.48910348,102410.0,102400.0,0.14630888]
[1762588375413,0.59219532,102410.0,102400.0,0.14630888]
[1762588375808,0.23139532,102410.0,102400.0,0.14630888]
[1762588376205,0.12830348,102410.0,102400.0,0.14630888]
[1762588376406,0.12830348,102410.0,102400.0,0.50710888]
[1762588383424,0.12830348,102410.0,102400.0,0.52012888]
[1762588384323,0.12830348,102410.0,102400.0,0.62322072]
[1762588384522,0.12830348,102410.0,102400.0,0.52012888]
[1762588386018,0.11440348,102410.0,102400.0,0.52012888]
[1762588388526,0.12790348,102410.0,102400.0,0.52012888]
[1762588391628,0.11440348,102410.0,102400.0,0.72093082]
[1762588392424,0.11440348,102410.0,102400.0,0.62322072]
[1762588393217,0.11440348,102410.0,102400.0,0.52012888]
[1762588393423,0.11440348,102410.0,102400.0,0.61783898]
[1762588393826,0.11440348,102410.0,102400.0,0.52012888]
[1762588394330,0.11440348,102410.0,102400.0,0.62322072]
[1762588394632,0.11440348,102410.0,102400.0,0.52012888]
[1762588395932,0.11440348,102410.0,102400.0,0.72093082]
[1762588404245,0.04406157,102410.0,102400.0,0.72093082]
[1762588404444,0.11442205,102410.0,102400.0,0.72093082]
[1762588407046,0.04406157,102410.0,102400.0,0.72093082]
[1762588407347,0.11443118,102410.0,102400.0,0.72093082]
[1762588411341,0.11443118,102410.0,102400.0,0.76661776]
[1762588411751,0.11443118,102410.0,102400.0,0.72093082]
[1762588412456,0.11443118,102410.0,102400.0,0.61782091]
[1762588416960,0.07036961,102410.0,102400.0,0.61782091]
[1762588419352,0.09206961,102410.0,102400.0,0.51474714]
[1762588419560,0.09206961,102410.0,102400.0,0.61782091]
[1762588420656,0.07036961,102410.0,102400.0,0.6649339]
[1762588421559,0.07036961,102410.0,102400.0,0.61782091]
[1762588424459,0.07036961,102410.0,102400.0,0.61882091]
[1762588424847,0.09164961,102410.0,102400.0,0.61882091]
[1762588425356,0.09164961,102410.0,102400.0,0.61982091]
[1762588425557,0.07036961,102410.0,102400.0,0.61982091]
[1762588425953,0.09164961,102410.0,102400.0,0.61982091]
[1762588438560,0.11466961,102410.0,102400.0,0.61982091]
[1762588438868,0.11466961,102410.0,102400.0,0.52211081]
[1762588440264,0.12829961,102410.0,102400.0,0.41903704]
[1762588440468,0.50658194,102410.0,102400.0,0.04521704]
[1762588440667,0.41873,102410.0,102400.0,0.04521704]
[1762588440960,0.50658194,102410.0,102400.0,0.04521704]
[1762588447367,0.50658194,102410.0,102400.0,0.14829081]
[1762588447563,0.14578194,102410.0,102400.0,0.52302081]
[1762588447865,0.12822252,102410.0,102400.0,0.52302081]
[1762588448761,0.11459252,102410.0,102400.0,0.52302081]
[1762588453773,0.11459252,102410.0,102400.0,0.16222081]
[1762588453970,0.11459252,102410.0,102400.0,0.52302081]
[1762588460070,0.13215194,102410.0,102400.0,0.52302081]
[1762588465877,0.08785194,102410.0,102400.0,0.52302081]
[1762588466182,0.10972194,102410.0,102400.0,0.52302081]
[1762588469277,0.02187,102410.0,102400.0,0.52302081]
[1762588469476,0.04464,102410.0,102400.0,0.52302081]
[1762588470478,0.11498212,102410.0,102400.0,0.52302081]
[1762588473392,0.07034212,102410.0,102400.0,0.52302081]
[1762588474082,0.49329194,102420.0,102410.0,0.05683]
[1762588474386,0.59637362,102420.0,102410.0,0.15991168]
[1762588474885,0.50852168,102420.0,102410.0,0.15991168]
[1762588475584,0.63115247,102420.0,102410.0,0.15991168]
[1762588476185,0.63115247,102420.0,102410.0,0.05683]
[1762588476380,0.63115247,102420.0,102410.0,0.15991168]
[1762588477187,0.64486247,102420.0,102410.0,0.15991168]
[1762588478896,0.54178079,102420.0,102410.0,0.15991168]
[1762588479080,0.25134647,102420.0,102410.0,0.15991168]
[1762588479286,0.12871568,102420.0,102410.0,0.15991168]
[1762588480188,0.05835,102420.0,102410.0,0.15991168]
[1762588481588,0.04464,102420.0,102410.0,0.15991168]